[Event "Early-Titled-Tuesday-Blitz-April-23-2024"]
[Site "Chess.com"]
[Date "2024.04.23"]
[Round "4"]
[White "MagnusCarlsen"]
[Black "mbojan"]
[Result "1/2-1/2"]
[WhiteElo "3214"]
[BlackElo "2919"]
[TimeControl "180+1"]
[EndTime "8:39:48 PDT"]
[Termination "Game drawn by repetition"]

1. e4 {[%clk 0:03:00.9]} 1... a6 {[%clk 0:03:00.9]} 2. d4 {[%clk 0:02:43.2]}
2... e6 {[%clk 0:03:01.1]} 3. Bd3 {[%clk 0:02:41.4]} 3... d5 {[%clk 0:03:01.2]}
4. exd5 {[%clk 0:02:41.8]} 4... exd5 {[%clk 0:03:01.4]} 5. Nf3 {[%clk
0:02:42.5]} 5... Bd6 {[%clk 0:03:01.6]} 6. O-O {[%clk 0:02:42.3]} 6... Ne7
{[%clk 0:03:02]} 7. c4 {[%clk 0:02:42.6]} 7... dxc4 {[%clk 0:03:01.7]} 8. Bxc4
{[%clk 0:02:43.5]} 8... O-O {[%clk 0:03:02]} 9. h3 {[%clk 0:02:42]} 9... Nbc6
{[%clk 0:03:01.6]} 10. Nc3 {[%clk 0:02:42.1]} 10... Bf5 {[%clk 0:03:01.7]} 11.
Re1 {[%clk 0:02:41.6]} 11... Ng6 {[%clk 0:03:01.5]} 12. Ng5 {[%clk 0:02:13]}
12... Nf4 {[%clk 0:02:37]} 13. Bxf4 {[%clk 0:02:07.5]} 13... Bxf4 {[%clk
0:02:37.9]} 14. Nxf7 {[%clk 0:02:07.8]} 14... Rxf7 {[%clk 0:02:37.1]} 15. Qf3
{[%clk 0:01:54.2]} 15... Qg5 {[%clk 0:02:31.7]} 16. Bxf7+ {[%clk 0:01:24.8]}
16... Kxf7 {[%clk 0:02:32.6]} 17. g3 {[%clk 0:01:22.9]} 17... Nxd4 {[%clk
0:01:32.7]} 18. Qd5+ {[%clk 0:01:22.9]} 18... Ne6 {[%clk 0:01:32.8]} 19. g4
{[%clk 0:00:18.7]} 19... Bxg4 {[%clk 0:01:27.2]} 20. hxg4 {[%clk 0:00:19.6]}
20... Qxg4+ {[%clk 0:01:21.5]} 21. Qg2 {[%clk 0:00:20.4]} 21... Qxg2+ {[%clk
0:00:47.4]} 22. Kxg2 {[%clk 0:00:20.5]} 22... Bd2 {[%clk 0:00:33.8]} 23. Re4
{[%clk 0:00:20.6]} 23... Bxc3 {[%clk 0:00:33.6]} 24. bxc3 {[%clk 0:00:20.8]}
24... Rd8 {[%clk 0:00:33.9]} 25. Rae1 {[%clk 0:00:20]} 25... Rd6 {[%clk
0:00:34.2]} 26. a4 {[%clk 0:00:20.2]} 26... Kf6 {[%clk 0:00:34.1]} 27. a5 {[%clk
0:00:20.5]} 27... g6 {[%clk 0:00:32.7]} 28. R1e3 {[%clk 0:00:20.8]} 28... g5
{[%clk 0:00:30.8]} 29. Kg3 {[%clk 0:00:18.9]} 29... h5 {[%clk 0:00:29.6]} 30. c4
{[%clk 0:00:15.9]} 30... b6 {[%clk 0:00:29.5]} 31. Re5 {[%clk 0:00:14]} 31...
Rc6 {[%clk 0:00:27.4]} 32. axb6 {[%clk 0:00:09.6]} 32... cxb6 {[%clk 0:00:28.3]}
33. Rd5 {[%clk 0:00:09.5]} 33... Nf4 {[%clk 0:00:22.7]} 34. Rd8 {[%clk
0:00:09.7]} 34... Rxc4 {[%clk 0:00:18.4]} 35. Rf8+ {[%clk 0:00:08.4]} 35... Kg6
{[%clk 0:00:19]} 36. Rg8+ {[%clk 0:00:03.2]} 36... Kf6 {[%clk 0:00:19.3]} 37.
Rf8+ {[%clk 0:00:03.7]} 37... Kg6 {[%clk 0:00:19.7]} 38. Rg8+ {[%clk 0:00:03.9]}
38... Kf6 {[%clk 0:00:20.3]} 39. Rf8+ {[%clk 0:00:04.4]} 1/2-1/2

[Event "Early-Titled-Tuesday-Blitz-April-23-2024"]
[Site "Chess.com"]
[Date "2024.04.23"]
[Round "4"]
[White "WiktoriaPOL"]
[Black "TokChess"]
[Result "0-1"]
[WhiteElo "2400"]
[BlackElo "2611"]
[TimeControl "180+1"]
[EndTime "8:39:49 PDT"]
[Termination "TokChess won on time"]

1. c4 {[%clk 0:03:00.9]} 1... c5 {[%clk 0:02:59.7]} 2. Nf3 {[%clk 0:03:00.2]}
2... Nf6 {[%clk 0:02:59.1]} 3. Nc3 {[%clk 0:03:00.2]} 3... Nc6 {[%clk
0:02:58.8]} 4. g3 {[%clk 0:02:59.2]} 4... e5 {[%clk 0:02:55.3]} 5. Bg2 {[%clk
0:02:58.1]} 5... h6 {[%clk 0:02:54.5]} 6. e3 {[%clk 0:02:53.5]} 6... Be7 {[%clk
0:02:52.6]} 7. d4 {[%clk 0:02:44.3]} 7... exd4 {[%clk 0:02:50.2]} 8. exd4 {[%clk
0:02:44.4]} 8... cxd4 {[%clk 0:02:40.3]} 9. Nxd4 {[%clk 0:02:45.3]} 9... O-O
{[%clk 0:02:40.1]} 10. O-O {[%clk 0:02:44.1]} 10... Bb4 {[%clk 0:02:34.8]} 11.
Nd5 {[%clk 0:02:11.5]} 11... Nxd5 {[%clk 0:02:31.8]} 12. Bxd5 {[%clk 0:02:02.8]}
12... Bc5 {[%clk 0:02:13.1]} 13. Be3 {[%clk 0:01:51.9]} 13... Qb6 {[%clk
0:01:54.2]} 14. Nf5 {[%clk 0:01:25.4]} 14... d6 {[%clk 0:01:46.8]} 15. Bxc5
{[%clk 0:01:01.6]} 15... dxc5 {[%clk 0:01:47.7]} 16. Qg4 {[%clk 0:00:49.5]}
16... Bxf5 {[%clk 0:01:44.6]} 17. Qxf5 {[%clk 0:00:49]} 17... Nd4 {[%clk
0:01:43.8]} 18. Qd3 {[%clk 0:00:40.9]} 18... Rfe8 {[%clk 0:01:33]} 19. b3 {[%clk
0:00:34.7]} 19... Rad8 {[%clk 0:01:27.8]} 20. Rfe1 {[%clk 0:00:27.4]} 20... Qd6
{[%clk 0:01:19.5]} 21. Kg2 {[%clk 0:00:21.5]} 21... b6 {[%clk 0:01:18.3]} 22.
Rad1 {[%clk 0:00:13]} 22... g6 {[%clk 0:01:17.6]} 23. Re3 {[%clk 0:00:10.8]}
23... Rxe3 {[%clk 0:01:11.4]} 24. fxe3 {[%clk 0:00:10.9]} 24... Nf5 {[%clk
0:01:08.7]} 25. Rf1 {[%clk 0:00:07.7]} 25... Rd7 {[%clk 0:00:59]} 26. g4 {[%clk
0:00:06.3]} 26... Nh4+ {[%clk 0:00:55.2]} 27. Kh3 {[%clk 0:00:06.6]} 27... g5
{[%clk 0:00:21.2]} 28. Bxf7+ {[%clk 0:00:05.1]} 28... Kg7 {[%clk 0:00:16.1]} 29.
Bd5 {[%clk 0:00:05.4]} 29... Qe5 {[%clk 0:00:13.6]} 30. Rf2 {[%clk 0:00:04.2]}
30... Re7 {[%clk 0:00:13]} 31. e4 {[%clk 0:00:03.7]} 31... Ng6 {[%clk
0:00:12.7]} 32. Qe3 {[%clk 0:00:03.1]} 32... Nf4+ {[%clk 0:00:12.9]} 33. Kg3
{[%clk 0:00:02.5]} 33... Nxd5+ {[%clk 0:00:13.1]} 0-1

[Event "Early-Titled-Tuesday-Blitz-April-23-2024"]
[Site "Chess.com"]
[Date "2024.04.23"]
[Round "4"]
[White "MatthewG-p4p"]
[Black "Oleksandr_Bortnyk"]
[Result "1/2-1/2"]
[WhiteElo "2903"]
[BlackElo "3106"]
[TimeControl "180+1"]
[EndTime "8:39:52 PDT"]
[Termination "Game drawn by repetition"]

1. e4 {[%clk 0:03:00.9]} 1... Nf6 {[%clk 0:02:58.8]} 2. e5 {[%clk 0:03:01.3]}
2... Nd5 {[%clk 0:02:56.7]} 3. d4 {[%clk 0:03:01.7]} 3... d6 {[%clk 0:02:56.9]}
4. Nf3 {[%clk 0:03:02.2]} 4... dxe5 {[%clk 0:02:57.5]} 5. Nxe5 {[%clk
0:03:03.1]} 5... c6 {[%clk 0:02:58.2]} 6. Be2 {[%clk 0:03:03.3]} 6... Bf5 {[%clk
0:02:58.6]} 7. O-O {[%clk 0:03:02.7]} 7... Nd7 {[%clk 0:02:59.2]} 8. Nf3 {[%clk
0:03:03.2]} 8... e6 {[%clk 0:02:59.3]} 9. c4 {[%clk 0:03:01.8]} 9... N5f6 {[%clk
0:02:59.4]} 10. Nh4 {[%clk 0:03:00]} 10... Bg6 {[%clk 0:02:58.9]} 11. Nc3 {[%clk
0:02:59.2]} 11... Bd6 {[%clk 0:02:59.2]} 12. g3 {[%clk 0:02:59.5]} 12... O-O
{[%clk 0:02:58.8]} 13. Nxg6 {[%clk 0:02:58.4]} 13... hxg6 {[%clk 0:02:59.7]} 14.
c5 {[%clk 0:02:58.8]} 14... Be7 {[%clk 0:02:44]} 15. b4 {[%clk 0:02:58.7]} 15...
a5 {[%clk 0:02:05.1]} 16. b5 {[%clk 0:02:42.5]} 16... e5 {[%clk 0:02:04.5]} 17.
bxc6 {[%clk 0:02:25.6]} 17... bxc6 {[%clk 0:02:02.7]} 18. dxe5 {[%clk
0:02:21.4]} 18... Nxe5 {[%clk 0:02:03.6]} 19. Bf4 {[%clk 0:02:20.7]} 19... Ned7
{[%clk 0:01:58.6]} 20. Bf3 {[%clk 0:02:17.6]} 20... Rc8 {[%clk 0:01:54.1]} 21.
Na4 {[%clk 0:02:03.9]} 21... Nxc5 {[%clk 0:01:44]} 22. Nxc5 {[%clk 0:02:02.3]}
22... Bxc5 {[%clk 0:01:39.1]} 23. Rc1 {[%clk 0:02:01.1]} 23... Qb6 {[%clk
0:01:07.2]} 24. Qc2 {[%clk 0:02:01.3]} 24... Bd4 {[%clk 0:01:05.2]} 25. Rb1
{[%clk 0:01:40.7]} 25... Qa7 {[%clk 0:00:53.3]} 26. Qc4 {[%clk 0:01:39.4]} 26...
Rfd8 {[%clk 0:00:45.7]} 27. Kg2 {[%clk 0:01:39.7]} 27... Nd5 {[%clk 0:00:40.6]}
28. Bd2 {[%clk 0:01:34.8]} 28... a4 {[%clk 0:00:23.8]} 29. h4 {[%clk 0:01:26.7]}
29... a3 {[%clk 0:00:23.1]} 30. Rb3 {[%clk 0:01:23]} 30... Bb2 {[%clk
0:00:23.1]} 31. Bg5 {[%clk 0:01:20]} 31... Nf6 {[%clk 0:00:22.3]} 32. Re1 {[%clk
0:01:10.7]} 32... Qd7 {[%clk 0:00:18.4]} 33. Rd1 {[%clk 0:00:58.7]} 33... Qe8
{[%clk 0:00:18.7]} 34. Rxd8 {[%clk 0:00:42.9]} 34... Qxd8 {[%clk 0:00:19.6]} 35.
Rb7 {[%clk 0:00:41.8]} 35... Rc7 {[%clk 0:00:19.9]} 36. Bxc6 {[%clk 0:00:37.3]}
36... Qc8 {[%clk 0:00:14.8]} 37. Qb3 {[%clk 0:00:21.7]} 37... Rxb7 {[%clk
0:00:13.9]} 38. Bxb7 {[%clk 0:00:22.6]} 38... Qf5 {[%clk 0:00:11.1]} 39. Bf3
{[%clk 0:00:21.9]} 39... Qd7 {[%clk 0:00:10.7]} 40. Qb8+ {[%clk 0:00:18.2]}
40... Kh7 {[%clk 0:00:10.8]} 41. Qb3 {[%clk 0:00:19.1]} 41... Kg8 {[%clk
0:00:11.1]} 42. Qb8+ {[%clk 0:00:19.3]} 42... Kh7 {[%clk 0:00:11.7]} 43. Qb3
{[%clk 0:00:20.1]} 43... Kg8 {[%clk 0:00:09.4]} 1/2-1/2

[Event "Early-Titled-Tuesday-Blitz-April-23-2024"]
[Site "Chess.com"]
[Date "2024.04.23"]
[Round "4"]
[White "NoVabbeSeiUnGenio"]
[Black "amylazy"]
[Result "0-1"]
[WhiteElo "2622"]
[BlackElo "2455"]
[TimeControl "180+1"]
[EndTime "8:39:52 PDT"]
[Termination "amylazy won on time"]

1. e4 {[%clk 0:02:57.9]} 1... c5 {[%clk 0:02:59.4]} 2. Nf3 {[%clk 0:02:57.8]}
2... e6 {[%clk 0:02:59.7]} 3. d4 {[%clk 0:02:58]} 3... cxd4 {[%clk 0:03:00]} 4.
c3 {[%clk 0:02:58.2]} 4... Nf6 {[%clk 0:02:59.2]} 5. e5 {[%clk 0:02:57.4]} 5...
Nd5 {[%clk 0:02:59.5]} 6. cxd4 {[%clk 0:02:57.9]} 6... d6 {[%clk 0:02:59.9]} 7.
exd6 {[%clk 0:02:58]} 7... Bxd6 {[%clk 0:02:59.8]} 8. Nc3 {[%clk 0:02:58.5]}
8... O-O {[%clk 0:02:59]} 9. Bd3 {[%clk 0:02:58.7]} 9... Nc6 {[%clk 0:02:56.6]}
10. a3 {[%clk 0:02:45.3]} 10... Nf4 {[%clk 0:02:55.8]} 11. Bxf4 {[%clk 0:02:42]}
11... Bxf4 {[%clk 0:02:55.6]} 12. Qe2 {[%clk 0:02:30.1]} 12... Nxd4 {[%clk
0:02:37.3]} 13. Qe4 {[%clk 0:02:23.1]} 13... Nxf3+ {[%clk 0:02:30.3]} 14. Qxf3
{[%clk 0:02:19.8]} 14... e5 {[%clk 0:02:19.6]} 15. O-O {[%clk 0:02:19.8]} 15...
Be6 {[%clk 0:02:01.6]} 16. Qxb7 {[%clk 0:02:12.8]} 16... Qxd3 {[%clk 0:01:59.6]}
17. Rad1 {[%clk 0:02:08.1]} 17... Qg6 {[%clk 0:01:55.5]} 18. g3 {[%clk
0:02:07.2]} 18... Rab8 {[%clk 0:01:45.4]} 19. Qxa7 {[%clk 0:02:06.5]} 19... Rxb2
{[%clk 0:01:44.8]} 20. Nd5 {[%clk 0:02:01.7]} 20... Bxd5 {[%clk 0:01:39.9]} 21.
Rxd5 {[%clk 0:02:02.6]} 21... Re2 {[%clk 0:01:25.6]} 22. a4 {[%clk 0:01:55.6]}
22... h5 {[%clk 0:01:25.6]} 23. Qa6 {[%clk 0:01:40.9]} 23... Qe4 {[%clk
0:01:21.7]} 24. Rd3 {[%clk 0:01:01]} 24... Bh6 {[%clk 0:01:13.8]} 25. h4 {[%clk
0:00:47.2]} 25... Ra8 {[%clk 0:01:09.7]} 26. Qb5 {[%clk 0:00:44.4]} 26... Ra2
{[%clk 0:01:00.2]} 27. Rd7 {[%clk 0:00:37.4]} 27... R2xa4 {[%clk 0:00:55.5]} 28.
Rfd1 {[%clk 0:00:30.4]} 28... Ra1 {[%clk 0:00:54.3]} 29. Rd8+ {[%clk 0:00:28.2]}
29... Kh7 {[%clk 0:00:53.2]} 30. Qb3 {[%clk 0:00:19.2]} 30... Rxd1+ {[%clk
0:00:44.2]} 31. Rxd1 {[%clk 0:00:20.1]} 31... Rc8 {[%clk 0:00:37]} 32. Qxf7
{[%clk 0:00:18.3]} 32... Qg6 {[%clk 0:00:29.5]} 33. Qe7 {[%clk 0:00:14.5]} 33...
e4 {[%clk 0:00:29.4]} 34. Rd6 {[%clk 0:00:12.8]} 34... Qf5 {[%clk 0:00:27.5]}
35. Qd7 {[%clk 0:00:05.5]} 35... Rc1+ {[%clk 0:00:26.5]} 36. Rd1 {[%clk
0:00:01.5]} 36... Qxd7 {[%clk 0:00:24.4]} 0-1

[Event "Early-Titled-Tuesday-Blitz-April-23-2024"]
[Site "Chess.com"]
[Date "2024.04.23"]
[Round "4"]
[White "Matibar"]
[Black "Bykov_Egor"]
[Result "1-0"]
[WhiteElo "2843"]
[BlackElo "2617"]
[TimeControl "180+1"]
[EndTime "8:39:54 PDT"]
[Termination "Matibar won by resignation"]

1. e4 {[%clk 0:02:56.3]} 1... c5 {[%clk 0:02:56.4]} 2. Nf3 {[%clk 0:02:54.5]}
2... e6 {[%clk 0:02:56.5]} 3. b3 {[%clk 0:02:52.7]} 3... Nc6 {[%clk 0:02:52.1]}
4. Bb2 {[%clk 0:02:50.5]} 4... d6 {[%clk 0:02:44.7]} 5. d4 {[%clk 0:02:42.4]}
5... cxd4 {[%clk 0:02:43.6]} 6. Nxd4 {[%clk 0:02:43.3]} 6... Nf6 {[%clk
0:02:40.6]} 7. Nxc6 {[%clk 0:02:40.8]} 7... bxc6 {[%clk 0:02:41.5]} 8. Bd3
{[%clk 0:02:40.9]} 8... d5 {[%clk 0:02:22.4]} 9. Nd2 {[%clk 0:02:39.4]} 9... Bb4
{[%clk 0:02:17.1]} 10. c3 {[%clk 0:02:04]} 10... Bd6 {[%clk 0:02:06.4]} 11. Qe2
{[%clk 0:02:03.3]} 11... Qc7 {[%clk 0:02:03]} 12. c4 {[%clk 0:02:00.3]} 12...
Be5 {[%clk 0:01:58.3]} 13. Bxe5 {[%clk 0:01:53.1]} 13... Qxe5 {[%clk 0:01:59.2]}
14. O-O {[%clk 0:01:53.2]} 14... O-O {[%clk 0:01:54.4]} 15. Nf3 {[%clk
0:01:43.7]} 15... Qh5 {[%clk 0:01:44.5]} 16. e5 {[%clk 0:01:42.9]} 16... Nd7
{[%clk 0:01:42.8]} 17. Rac1 {[%clk 0:01:40]} 17... f6 {[%clk 0:01:24.3]} 18.
Rfe1 {[%clk 0:01:17.2]} 18... fxe5 {[%clk 0:01:16.2]} 19. Nxe5 {[%clk
0:01:16.9]} 19... Qxe2 {[%clk 0:01:11.8]} 20. Rxe2 {[%clk 0:01:16.5]} 20... Nxe5
{[%clk 0:01:12.7]} 21. Rxe5 {[%clk 0:01:17.2]} 21... Bd7 {[%clk 0:01:01.1]} 22.
f3 {[%clk 0:01:04.2]} 22... Rf4 {[%clk 0:00:57.9]} 23. Kf2 {[%clk 0:01:02.5]}
23... Raf8 {[%clk 0:00:56.2]} 24. cxd5 {[%clk 0:00:59]} 24... exd5 {[%clk
0:00:55.1]} 25. Rc5 {[%clk 0:00:58.5]} 25... Re8 {[%clk 0:00:45.6]} 26. Rxe8+
{[%clk 0:00:57.3]} 26... Bxe8 {[%clk 0:00:46.5]} 27. Ra5 {[%clk 0:00:56.3]}
27... Rf7 {[%clk 0:00:47.1]} 28. Ke3 {[%clk 0:00:56.4]} 28... g5 {[%clk
0:00:39.9]} 29. Kd4 {[%clk 0:00:47.8]} 29... h5 {[%clk 0:00:39.9]} 30. Ke5
{[%clk 0:00:36.2]} 30... Kg7 {[%clk 0:00:32]} 31. Kd6 {[%clk 0:00:36]} 31... g4
{[%clk 0:00:28.4]} 32. f4 {[%clk 0:00:28]} 32... Rxf4 {[%clk 0:00:19.5]} 33.
Rxa7+ {[%clk 0:00:27.8]} 33... Bf7 {[%clk 0:00:19.1]} 34. Re7 {[%clk 0:00:24.8]}
34... Rf6+ {[%clk 0:00:12.4]} 35. Kc5 {[%clk 0:00:24.6]} 35... Kf8 {[%clk
0:00:11.7]} 36. Re2 {[%clk 0:00:24.4]} 36... h4 {[%clk 0:00:07.6]} 37. a4 {[%clk
0:00:24.3]} 37... g3 {[%clk 0:00:07.2]} 38. hxg3 {[%clk 0:00:23.8]} 38... hxg3
{[%clk 0:00:07]} 39. a5 {[%clk 0:00:24.2]} 39... Rf1 {[%clk 0:00:06]} 40. Re8+
{[%clk 0:00:22.6]} 40... Bxe8 {[%clk 0:00:05.3]} 41. Bxf1 {[%clk 0:00:23.5]}
41... Ke7 {[%clk 0:00:05.6]} 42. a6 {[%clk 0:00:23.7]} 1-0

[Event "Early-Titled-Tuesday-Blitz-April-23-2024"]
[Site "Chess.com"]
[Date "2024.04.23"]
[Round "4"]
[White "kids2010"]
[Black "maximnovik"]
[Result "1-0"]
[WhiteElo "2780"]
[BlackElo "2574"]
[TimeControl "180+1"]
[EndTime "8:39:54 PDT"]
[Termination "kids2010 won by checkmate"]

1. e4 {[%clk 0:03:00.9]} 1... c6 {[%clk 0:02:58.8]} 2. Nf3 {[%clk 0:02:53]} 2...
d5 {[%clk 0:02:59.3]} 3. Nc3 {[%clk 0:02:53.9]} 3... Bg4 {[%clk 0:02:56.6]} 4.
h3 {[%clk 0:02:44.3]} 4... Bxf3 {[%clk 0:02:56.4]} 5. Qxf3 {[%clk 0:02:45.2]}
5... Nf6 {[%clk 0:02:56]} 6. e5 {[%clk 0:02:42.1]} 6... Nfd7 {[%clk 0:02:55.1]}
7. d4 {[%clk 0:02:36.6]} 7... e6 {[%clk 0:02:54.6]} 8. Ne2 {[%clk 0:02:32.5]}
8... c5 {[%clk 0:02:54.3]} 9. c3 {[%clk 0:02:27.5]} 9... Nc6 {[%clk 0:02:52]}
10. Be3 {[%clk 0:02:13.9]} 10... Qb6 {[%clk 0:02:47.9]} 11. Rb1 {[%clk
0:02:13.5]} 11... cxd4 {[%clk 0:02:44.8]} 12. Nxd4 {[%clk 0:01:57.8]} 12...
Ncxe5 {[%clk 0:02:12.1]} 13. Qg3 {[%clk 0:01:56.6]} 13... Qa5 {[%clk 0:02:06]}
14. Bb5 {[%clk 0:01:52.4]} 14... a6 {[%clk 0:01:51.8]} 15. Bxd7+ {[%clk
0:01:39.8]} 15... Nxd7 {[%clk 0:01:50.6]} 16. O-O {[%clk 0:01:40.3]} 16... g6
{[%clk 0:01:31.4]} 17. Rfe1 {[%clk 0:01:36]} 17... Bg7 {[%clk 0:01:16.2]} 18.
Qd6 {[%clk 0:01:35.7]} 18... Be5 {[%clk 0:01:11.8]} 19. Qa3 {[%clk 0:01:24.8]}
19... Qxa3 {[%clk 0:01:07.2]} 20. bxa3 {[%clk 0:01:25.7]} 20... O-O-O {[%clk
0:01:00.3]} 21. c4 {[%clk 0:01:19.8]} 21... Nf6 {[%clk 0:00:46]} 22. Rec1 {[%clk
0:01:16.8]} 22... Rd7 {[%clk 0:00:12.8]} 23. cxd5+ {[%clk 0:01:14.7]} 23... Rc7
{[%clk 0:00:13.3]} 24. dxe6 {[%clk 0:01:13.4]} 24... fxe6 {[%clk 0:00:13]} 25.
Nxe6 {[%clk 0:01:04.4]} 25... Rxc1+ {[%clk 0:00:13.3]} 26. Rxc1+ {[%clk
0:01:05.3]} 26... Kd7 {[%clk 0:00:13.5]} 27. Nc5+ {[%clk 0:01:05.2]} 27... Ke7
{[%clk 0:00:12.8]} 28. Nd3 {[%clk 0:01:01.2]} 28... Bd6 {[%clk 0:00:11.1]} 29.
a4 {[%clk 0:00:59]} 29... Rd8 {[%clk 0:00:09.3]} 30. Rb1 {[%clk 0:00:57.3]}
30... Rd7 {[%clk 0:00:09.4]} 31. Bg5 {[%clk 0:00:52.3]} 31... Kf7 {[%clk
0:00:09.6]} 32. Rd1 {[%clk 0:00:47.6]} 32... Ne4 {[%clk 0:00:09.4]} 33. Be3
{[%clk 0:00:46.6]} 33... Ke6 {[%clk 0:00:07.4]} 34. Re1 {[%clk 0:00:43.6]} 34...
Kf7 {[%clk 0:00:07.1]} 35. Bd4 {[%clk 0:00:40.5]} 35... Bh2+ {[%clk 0:00:04.2]}
36. Kxh2 {[%clk 0:00:36.7]} 36... Rxd4 {[%clk 0:00:04.7]} 37. Ne5+ {[%clk
0:00:37.4]} 37... Kf6 {[%clk 0:00:05]} 38. Ng4+ {[%clk 0:00:37.1]} 38... Kf5
{[%clk 0:00:04]} 39. f3 {[%clk 0:00:36.4]} 39... Nf6 {[%clk 0:00:03.5]} 40. Re5+
{[%clk 0:00:34.9]} 40... Kf4 {[%clk 0:00:04]} 41. g3+ {[%clk 0:00:28.6]} 41...
Kxf3 {[%clk 0:00:04.5]} 42. Re3# {[%clk 0:00:29.4]} 1-0

[Event "Early-Titled-Tuesday-Blitz-April-23-2024"]
[Site "Chess.com"]
[Date "2024.04.23"]
[Round "4"]
[White "MatyChess1"]
[Black "AsaHoffmann"]
[Result "1-0"]
[WhiteElo "2674"]
[BlackElo "2401"]
[TimeControl "180+1"]
[EndTime "8:39:54 PDT"]
[Termination "MatyChess1 won by resignation"]

1. Nf3 {[%clk 0:03:00.9]} 1... d6 {[%clk 0:02:59.3]} 2. d4 {[%clk 0:02:59.9]}
2... Bg4 {[%clk 0:02:56.5]} 3. g3 {[%clk 0:02:56.7]} 3... Bxf3 {[%clk
0:02:55.7]} 4. exf3 {[%clk 0:02:56.9]} 4... c6 {[%clk 0:02:55.8]} 5. c4 {[%clk
0:02:54]} 5... e6 {[%clk 0:02:55.8]} 6. d5 {[%clk 0:02:45.1]} 6... exd5 {[%clk
0:02:50.6]} 7. cxd5 {[%clk 0:02:45.4]} 7... c5 {[%clk 0:02:50.7]} 8. Bb5+ {[%clk
0:02:39.6]} 8... Nd7 {[%clk 0:02:49.1]} 9. O-O {[%clk 0:02:40]} 9... Be7 {[%clk
0:02:46.7]} 10. Re1 {[%clk 0:02:34.3]} 10... Nf6 {[%clk 0:02:46.2]} 11. a4
{[%clk 0:02:30.8]} 11... O-O {[%clk 0:02:44.4]} 12. a5 {[%clk 0:02:30.4]} 12...
a6 {[%clk 0:02:43.7]} 13. Bc4 {[%clk 0:02:29.6]} 13... Re8 {[%clk 0:02:42.4]}
14. Nc3 {[%clk 0:02:28.1]} 14... Qc7 {[%clk 0:02:30.3]} 15. Bf4 {[%clk
0:02:19.4]} 15... Nh5 {[%clk 0:02:25]} 16. Be3 {[%clk 0:02:17.4]} 16... g6
{[%clk 0:02:21.9]} 17. f4 {[%clk 0:02:06.8]} 17... Ng7 {[%clk 0:02:02.3]} 18.
Bd3 {[%clk 0:02:04]} 18... c4 {[%clk 0:01:53.7]} 19. Bc2 {[%clk 0:02:04.2]}
19... Rac8 {[%clk 0:01:50.5]} 20. Ra4 {[%clk 0:01:54]} 20... Nc5 {[%clk
0:01:43]} 21. Rxc4 {[%clk 0:01:48.4]} 21... Qd8 {[%clk 0:01:26.3]} 22. b4 {[%clk
0:01:43.1]} 22... Nd7 {[%clk 0:01:25.7]} 23. Rxc8 {[%clk 0:01:36.8]} 23... Qxc8
{[%clk 0:01:25.5]} 24. Qd2 {[%clk 0:01:35.9]} 24... Bf6 {[%clk 0:01:24.7]} 25.
Ne4 {[%clk 0:01:35.4]} 25... Be7 {[%clk 0:01:19.1]} 26. Rc1 {[%clk 0:01:35.6]}
26... Nf5 {[%clk 0:01:15.4]} 27. Ba4 {[%clk 0:01:33.5]} 27... Qd8 {[%clk
0:01:14.7]} 28. Bb6 {[%clk 0:00:50.8]} 28... Nxb6 {[%clk 0:01:06.4]} 29. axb6
{[%clk 0:00:48.7]} 29... Rf8 {[%clk 0:00:55.8]} 30. Rc7 {[%clk 0:00:49.2]} 30...
Bf6 {[%clk 0:00:48.2]} 31. Rd7 {[%clk 0:00:45.9]} 31... Qc8 {[%clk 0:00:40.7]}
32. Nxf6+ {[%clk 0:00:45.2]} 32... Kg7 {[%clk 0:00:38.6]} 33. Rc7 {[%clk
0:00:45.5]} 33... Qd8 {[%clk 0:00:34.8]} 34. Ne4 {[%clk 0:00:41.7]} 34... Re8
{[%clk 0:00:31.7]} 35. Bxe8 {[%clk 0:00:37.3]} 35... Qxe8 {[%clk 0:00:31.8]} 36.
Qc3+ {[%clk 0:00:33.8]} 36... Kh6 {[%clk 0:00:30.3]} 37. Ng5 {[%clk 0:00:29]}
37... Qe2 {[%clk 0:00:25.6]} 38. Rxf7 {[%clk 0:00:17]} 38... Qd1+ {[%clk
0:00:22.1]} 39. Kg2 {[%clk 0:00:17.4]} 39... Qxd5+ {[%clk 0:00:21.6]} 40. Qf3
{[%clk 0:00:17.8]} 1-0

[Event "Early-Titled-Tuesday-Blitz-April-23-2024"]
[Site "Chess.com"]
[Date "2024.04.23"]
[Round "4"]
[White "average_trans"]
[Black "littlepinkyboy"]
[Result "0-1"]
[WhiteElo "2242"]
[BlackElo "2661"]
[TimeControl "180+1"]
[EndTime "8:39:57 PDT"]
[Termination "littlepinkyboy won by resignation"]

1. d4 {[%clk 0:03:00.9]} 1... d5 {[%clk 0:03:00]} 2. Bf4 {[%clk 0:03:00.4]} 2...
Nf6 {[%clk 0:02:59.9]} 3. e3 {[%clk 0:02:58.5]} 3... c5 {[%clk 0:03:00.2]} 4. c3
{[%clk 0:02:57.7]} 4... Nc6 {[%clk 0:02:58.9]} 5. h3 {[%clk 0:02:57.8]} 5... e6
{[%clk 0:02:58.4]} 6. Bb5 {[%clk 0:02:54.1]} 6... Bd6 {[%clk 0:02:58.1]} 7. Ne2
{[%clk 0:02:53.1]} 7... O-O {[%clk 0:02:57.5]} 8. Nd2 {[%clk 0:02:52.5]} 8... a6
{[%clk 0:02:54.6]} 9. Ba4 {[%clk 0:02:51.8]} 9... b5 {[%clk 0:02:50.2]} 10. Bc2
{[%clk 0:02:51.1]} 10... c4 {[%clk 0:02:44.7]} 11. O-O {[%clk 0:02:47.5]} 11...
Bb7 {[%clk 0:02:44.2]} 12. b3 {[%clk 0:02:43.6]} 12... cxb3 {[%clk 0:02:32.2]}
13. axb3 {[%clk 0:02:41.7]} 13... Rc8 {[%clk 0:02:31.7]} 14. Nf3 {[%clk
0:02:37]} 14... Bxf4 {[%clk 0:02:26.4]} 15. Nxf4 {[%clk 0:02:35.9]} 15... Ne7
{[%clk 0:02:24.1]} 16. Ne2 {[%clk 0:02:31.9]} 16... Qd6 {[%clk 0:02:21.9]} 17.
Nd2 {[%clk 0:02:20]} 17... Rc7 {[%clk 0:02:18.8]} 18. b4 {[%clk 0:02:19.6]}
18... Rfc8 {[%clk 0:02:18]} 19. Nb3 {[%clk 0:02:19.6]} 19... Nd7 {[%clk
0:02:13]} 20. Nc5 {[%clk 0:02:18.2]} 20... Nxc5 {[%clk 0:02:06.6]} 21. bxc5
{[%clk 0:02:16.3]} 21... Qd7 {[%clk 0:02:00.9]} 22. Qd3 {[%clk 0:02:14.9]} 22...
f5 {[%clk 0:01:57.7]} 23. Nc1 {[%clk 0:02:12.2]} 23... e5 {[%clk 0:01:53.9]} 24.
Nb3 {[%clk 0:02:06]} 24... e4 {[%clk 0:01:50.1]} 25. Qe2 {[%clk 0:01:53]} 25...
Nc6 {[%clk 0:01:42.4]} 26. Na5 {[%clk 0:01:50.6]} 26... Nxa5 {[%clk 0:01:40.2]}
27. Rxa5 {[%clk 0:01:51.5]} 27... Qe6 {[%clk 0:01:38.9]} 28. Bb3 {[%clk
0:01:51]} 28... Rf7 {[%clk 0:01:36.5]} 29. Rfa1 {[%clk 0:01:47.3]} 29... f4
{[%clk 0:01:30.5]} 30. exf4 {[%clk 0:01:46.7]} 30... Rxf4 {[%clk 0:01:31.4]} 31.
Qa2 {[%clk 0:01:31.7]} 31... Rcf8 {[%clk 0:00:55.9]} 32. Rxa6 {[%clk 0:01:20.2]}
32... Qf5 {[%clk 0:00:44]} 33. Rd6 {[%clk 0:01:15.4]} 33... Rxf2 {[%clk
0:00:42.1]} 34. Bxd5+ {[%clk 0:00:50.6]} 34... Kh8 {[%clk 0:00:37.5]} 35. Qb3
{[%clk 0:00:47.2]} 35... Qg5 {[%clk 0:00:26.5]} 36. g4 {[%clk 0:00:34]} 36...
Qe3 {[%clk 0:00:20.8]} 0-1